bitfinex-derivatives/quotes_BTCF0:USTF0_20250320
["timestamp","ask_amount","ask_price","bid_price","bid_amount"]
[1742487149056,0.4793913,84450.0,84446.0,0.4200315]
[1742487149057,0.1184624,84447.0,84446.0,0.3608]
[1742487149257,0.118468,84443.0,84442.0,0.1184686]
[1742487149667,0.421368,84443.0,84442.0,0.1184686]
[1742487150465,0.1184708,84441.0,84440.0,0.42103224]
[1742487150662,0.1184722,84440.0,84439.0,4e-05]
[1742487150858,0.118475,84438.0,84437.0,0.00017753]
[1742487151267,0.427475,84438.0,84437.0,0.00017753]
[1742487151469,0.569575,84438.0,84437.0,0.00017753]
[1742487151667,0.1184919,84426.0,84425.0,4e-05]
[1742487151967,0.1184919,84426.0,84420.0,0.30256094]
[1742487151968,0.1777477,84422.0,84420.0,0.30256094]
[1742487152165,0.1185003,84420.0,84419.0,0.8608]
[1742487152371,0.1185003,84420.0,84419.0,0.9787017]
[1742487152574,0.2742003,84420.0,84419.0,0.9787017]
[1742487152864,0.4255003,84420.0,84419.0,0.9787017]
[1742487153065,0.4255003,84420.0,84419.0,1.2878017]
[1742487153469,0.4255003,84420.0,84419.0,1.2898017]
[1742487153663,0.1557,84420.0,84419.0,1.2898017]
[1742487154567,0.00017765,84428.0,84419.0,1.4443]
[1742487154871,0.00017765,84428.0,84427.0,0.1184905]
[1742487155061,0.27456675,84428.0,84427.0,0.4809905]
[1742487155265,0.27456675,84428.0,84427.0,0.1184905]
[1742487155665,0.42686675,84428.0,84427.0,0.1184905]
[1742487155871,0.42686675,84428.0,84427.0,0.2613905]
[1742487156169,0.15607765,84428.0,84427.0,0.4119905]
[1742487156368,0.00017765,84428.0,84427.0,0.6419905]
[1742487157565,0.00017765,84428.0,84427.0,0.6439905]
[1742487158064,0.11866675,84428.0,84427.0,0.6439905]
[1742487158268,0.11866675,84428.0,84427.0,0.6429905]
[1742487158466,0.11866675,84428.0,84427.0,0.002]
[1742487158873,0.14887765,84428.0,84427.0,0.1204905]
[1742487159069,0.20427007,84448.0,84435.0,0.1184793]
[1742487159267,0.1184658,84445.0,84435.0,0.7392793]
[1742487159573,0.1184684,84443.0,84442.0,0.1777006]
[1742487159768,0.1184684,84443.0,84442.0,0.5385006]
[1742487159971,0.1573,84444.0,84443.0,0.118468]
[1742487160178,0.1573,84444.0,84443.0,0.417768]
[1742487160377,0.2757666,84444.0,84443.0,0.417768]
[1742487160574,0.1184666,84444.0,84443.0,0.697768]
[1742487160771,0.1184779,84436.0,84435.0,0.00085765]
[1742487161273,0.4256779,84436.0,84435.0,0.00085765]
[1742487161473,0.4286779,84436.0,84435.0,0.00085765]
[1742487162273,0.5589579,84436.0,84435.0,0.11933695]
[1742487162476,0.5629579,84436.0,84435.0,0.41863695]
[1742487162678,0.5609579,84436.0,84435.0,0.41863695]
[1742487162876,0.5649579,84436.0,84435.0,0.11865695]
[1742487163668,0.93712737,84436.0,84435.0,0.00017765]
[1742487165172,0.1185017,84419.0,84418.0,0.00891056]
[1742487165371,0.1185017,84419.0,84418.0,4e-05]
[1742487165574,0.1185017,84419.0,84418.0,0.1185431]
[1742487165774,0.4256017,84419.0,84418.0,0.1185431]
[1742487165974,0.43674315,84419.0,84418.0,0.1185431]
[1742487167580,0.43674315,84419.0,84418.0,0.1195431]
[1742487167983,0.43674315,84419.0,84418.0,0.4231431]
[1742487168769,0.4256017,84419.0,84418.0,0.4231431]
[1742487169376,0.4256017,84419.0,84418.0,0.7839431]
[1742487169777,0.4256017,84419.0,84418.0,0.2732431]
[1742487170174,0.4256017,84419.0,84418.0,0.4124431]
[1742487170584,0.4256017,84419.0,84418.0,0.4114431]
[1742487171375,0.2716017,84419.0,84418.0,0.4114431]
[1742487171988,0.4232017,84419.0,84418.0,0.4114431]
[1742487173587,0.4232017,84419.0,84418.0,4e-05]
[1742487173781,0.4232017,84419.0,84415.0,0.1185067]
[1742487173782,0.1185059,84416.0,84415.0,0.1185067]
[1742487174289,0.4178059,84416.0,84415.0,0.2646067]
[1742487174592,0.4178059,84416.0,84415.0,0.4136067]
[1742487174784,0.2993,84416.0,84415.0,0.4136067]
[1742487174984,0.1185059,84416.0,84415.0,0.4738596]
[1742487175291,0.1185059,84416.0,84415.0,0.48256197]
[1742487175486,0.2734059,84416.0,84415.0,0.48256197]
[1742487175681,0.4273059,84416.0,84415.0,0.48256197]
[1742487175987,0.4273059,84416.0,84415.0,0.001]
[1742487176886,0.4273059,84416.0,84415.0,0.1195073]
[1742487178184,0.4273059,84416.0,84415.0,0.001]
[1742487178583,0.4273059,84416.0,84415.0,0.1195073]
[1742487178785,0.1539,84416.0,84415.0,0.6989073]
[1742487178984,0.1184926,84426.0,84425.0,0.1184933]
[1742487179291,0.27046815,84427.0,84426.0,0.1184919]
[1742487179594,0.00017765,84427.0,84426.0,0.8343919]
[1742487179985,0.11866815,84427.0,84426.0,0.8343919]
[1742487180491,0.00017765,84427.0,84426.0,0.8343919]
[1742487180692,0.00417765,84427.0,84426.0,0.8343919]
[1742487181088,0.20427007,84433.0,84429.0,0.0592434]
[1742487181289,0.20427007,84433.0,84432.0,0.4792835]
[1742487181495,0.1457,84445.0,84442.0,0.1184694]
[1742487181792,0.24798313,84443.0,84442.0,0.8904694]
[1742487181990,0.01,84443.0,84442.0,0.8904694]
[1742487182190,0.01,84443.0,84442.0,1.0394694]
[1742487182191,0.1,84443.0,84442.0,1.0394694]
[1742487182891,0.103,84443.0,84442.0,1.0394694]
[1742487183391,0.013,84443.0,84442.0,1.0394694]
[1742487183695,0.23816078,84451.0,84450.0,0.1184582]
[1742487183896,0.23816078,84451.0,84450.0,0.7692582]
[1742487184195,0.23816078,84451.0,84450.0,0.9004582]
[1742487184798,0.23816078,84451.0,84450.0,1.35616378]
[1742487185699,0.24216078,84451.0,84450.0,1.35616378]
[1742487185906,0.00417765,84451.0,84450.0,1.35616378]
[1742487186489,1e-08,84451.0,84450.0,1.91676378]
[1742487186792,0.1184052,84488.0,84466.0,0.1184358]
[1742487187001,0.1184175,84480.0,84479.0,0.1184147]
[1742487187191,0.1184175,84480.0,84479.0,0.3484147]
[1742487187393,0.1184025,84490.0,84483.0,0.0592057]
[1742487187597,0.35638663,84489.0,84488.0,0.4792049]
[1742487187792,0.35638663,84489.0,84488.0,0.7192049]
[1742487187994,0.23798313,84489.0,84488.0,0.73036234]
[1742487188800,0.23798313,84489.0,84488.0,0.73908775]
[1742487189297,0.35638663,84489.0,84488.0,0.49908775]
[1742487189497,0.1184035,84489.0,84488.0,0.49908775]
[1742487189699,0.1776129,84487.0,84486.0,0.1184069]
[1742487189904,0.0592038,84487.0,84486.0,0.1184069]
[1742487190091,0.00017754,84497.0,84492.0,0.1183979]
[1742487190092,0.1183983,84493.0,84492.0,0.1183979]
[1742487190404,0.1775973,84493.0,84492.0,0.2599979]
[1742487190810,0.0592017,84490.0,84486.0,0.00868808]
[1742487191006,0.1184105,84484.0,84481.0,0.1416]
[1742487191300,0.005,84487.0,84473.0,0.2046124]
[1742487191301,0.1184175,84479.0,84478.0,0.3614]
[1742487191502,0.1184175,84479.0,84478.0,0.3608]
[1742487191698,0.1184274,84472.0,84467.0,0.4792338]
[1742487192000,0.2495474,84472.0,84470.0,0.2368588]
[1742487192205,0.2495474,84472.0,84467.0,0.3608]
[1742487192399,0.2495474,84472.0,84470.0,0.00893781]
[1742487192605,0.2495474,84472.0,84462.0,0.1454]
[1742487192796,0.2495474,84472.0,84463.0,0.1184392]
[1742487193104,0.1184484,84457.0,84456.0,0.4054498]
[1742487193503,0.1184484,84457.0,84456.0,0.00872728]
[1742487193702,0.1184512,84455.0,84454.0,0.0006]
[1742487193889,0.1184568,84451.0,84450.0,0.3608]
[1742487194093,0.1184666,84444.0,84443.0,0.01142659]
[1742487194301,0.6103466,84444.0,84443.0,0.01142659]
[1742487194508,0.6421466,84444.0,84443.0,0.01142659]
[1742487194804,0.6103466,84444.0,84443.0,0.01138659]
[1742487194997,0.118468,84443.0,84442.0,0.00017754]
[1742487195602,0.118468,84443.0,84442.0,0.00021754]
[1742487195906,0.249548,84443.0,84442.0,0.11868694]
[1742487196104,0.249548,84443.0,84442.0,0.00021754]
[1742487196902,0.251548,84443.0,84442.0,0.11868694]
[1742487197695,0.256548,84443.0,84442.0,0.41668694]
[1742487198406,0.251548,84443.0,84442.0,0.41668694]
[1742487198600,0.255548,84443.0,84442.0,0.41668694]
[1742487199108,0.255548,84443.0,84442.0,0.00021754]
[1742487199799,0.255548,84443.0,84442.0,0.11864694]
[1742487200397,0.124468,84443.0,84442.0,0.11864694]
[1742487200706,0.255548,84443.0,84442.0,0.11864694]
[1742487201717,0.006,84443.0,84442.0,0.11864694]
[1742487201902,0.006,84443.0,84442.0,0.66894694]
[1742487202401,0.124468,84443.0,84442.0,0.11864694]
[1742487203497,0.122468,84443.0,84442.0,0.11864694]
[1742487204101,0.005,84443.0,84442.0,0.11864694]
[1742487204413,0.119468,84443.0,84442.0,0.41454694]
[1742487204799,0.119468,84443.0,84442.0,0.11864694]
[1742487205002,0.119468,84443.0,84442.0,0.41454694]
[1742487205504,0.121468,84443.0,84442.0,0.41454694]
[1742487205710,0.120468,84443.0,84442.0,0.41454694]
[1742487205911,0.122468,84443.0,84442.0,0.41454694]
[1742487206808,0.00382235,84443.0,84442.0,0.64454694]
[1742487207016,0.00382235,84443.0,84442.0,1.00534694]
[1742487207312,0.13104,84473.0,84458.0,0.118447]
[1742487207502,0.1469,84469.0,84458.0,0.749247]
[1742487207701,0.11862314,84459.0,84458.0,1.054547]
[1742487207899,0.11862314,84459.0,84458.0,0.546647]
[1742487208314,0.29197754,84459.0,84458.0,0.907447]
[1742487208615,0.29197754,84459.0,84458.0,0.91869947]
[1742487208915,0.00017754,84459.0,84458.0,0.91869947]
[1742487209109,0.00017754,84459.0,84458.0,0.91969947]
[1742487209504,0.00117754,84459.0,84458.0,0.91969947]
[1742487209705,0.00117754,84459.0,84458.0,1.82213947]
[1742487210015,0.1449,84475.0,84474.0,0.1184246]
[1742487210205,0.2633232,84475.0,84474.0,0.1184246]
[1742487210799,0.2633232,84475.0,84469.0,0.45432272]
[1742487210800,0.0592143,84472.0,84469.0,0.3089]
[1742487211000,0.1184344,84467.0,84466.0,0.11861244]
[1742487211727,0.1184344,84467.0,84466.0,0.43151244]
[1742487211912,0.1184344,84467.0,84466.0,0.27581244]
[1742487212114,0.2718344,84467.0,84466.0,0.11861244]
[1742487212509,0.52580067,84467.0,84461.0,4e-05]
[1742487212813,0.1184414,84462.0,84461.0,4e-05]
[1742487213007,0.2494414,84462.0,84461.0,4e-05]
[1742487213317,0.1184456,84459.0,84458.0,0.001]
[1742487213501,0.4792456,84459.0,84458.0,0.001]
[1742487214410,0.1184498,84456.0,84455.0,4e-05]
[1742487215412,0.2184498,84456.0,84455.0,4e-05]
[1742487215813,0.4292498,84456.0,84455.0,4e-05]
[1742487216209,0.4342498,84456.0,84455.0,4e-05]
[1742487217613,0.3158,84456.0,84455.0,0.1184912]
[1742487217808,0.00478246,84456.0,84455.0,0.3684912]
[1742487218017,0.1545,84463.0,84460.0,0.1184442]
[1742487218218,0.00017754,84464.0,84463.0,0.11844]
[1742487218421,0.11861754,84464.0,84463.0,0.42904]
[1742487219021,0.11861754,84464.0,84463.0,0.11844]
[1742487219226,0.43031754,84464.0,84463.0,0.11844]
[1742487219610,0.31187754,84464.0,84461.0,0.3106]
[1742487219820,0.31187754,84464.0,84461.0,0.1184421]
[1742487219821,0.1184414,84462.0,84461.0,0.1184421]
[1742487220216,0.4301414,84462.0,84461.0,0.1184421]
[1742487220619,0.00017754,84464.0,84463.0,0.11844]
[1742487221529,0.00017754,84464.0,84463.0,0.40844]
[1742487224427,0.00017754,84464.0,84463.0,0.5394]
[1742487224634,4e-08,84464.0,84463.0,0.95]
[1742487224930,0.1776124,84486.0,84485.0,0.1776101]
[1742487226218,0.1836124,84486.0,84485.0,0.1776101]
[1742487226629,0.006,84486.0,84485.0,0.1776101]
[1742487226828,0.006,84486.0,84485.0,0.3085701]
[1742487227034,0.006,84486.0,84485.0,0.5785701]
[1742487227935,0.1244077,84486.0,84485.0,0.58752142]
[1742487228427,0.1244077,84486.0,84485.0,0.06815512]
[1742487228819,0.3181,84486.0,84485.0,0.42895512]
[1742487229021,0.3181,84486.0,84485.0,0.06815512]
[1742487229526,0.17114113,84502.0,84493.0,0.1183979]
[1742487229724,0.1548,84501.0,84493.0,0.5193179]
[1742487229925,0.1183944,84496.0,84493.0,0.5193179]
[1742487230129,0.3067,84495.0,84493.0,0.5193179]
[1742487230326,0.30687754,84494.0,84493.0,0.27]
[1742487230527,0.1183993,84492.0,84491.0,0.0597997]
[1742487230732,0.1183993,84492.0,84491.0,0.0591997]
[1742487231029,0.1277411,84492.0,84491.0,0.0592397]
[1742487231536,0.1247411,84492.0,84491.0,0.0592397]
[1742487231732,0.1247411,84492.0,84491.0,0.1184407]
[1742487231930,0.2247411,84492.0,84491.0,4e-05]
[1742487232128,0.31583914,84495.0,84491.0,4e-05]
[1742487232336,0.1775886,84500.0,84499.0,0.1183832]
[1742487232636,0.1775886,84500.0,84499.0,0.059193]
[1742487232826,0.572093,84502.0,84499.0,0.059193]
[1742487232827,0.1521,84502.0,84501.0,0.1183867]
[1742487233028,0.1521,84502.0,84501.0,0.3583867]
[1742487233839,0.1521,84502.0,84496.0,0.3608]
[1742487234038,0.2035933,84501.0,84496.0,0.3608]
[1742487234336,0.1183923,84497.0,84496.0,0.18901431]
[1742487234641,0.2669886,84500.0,84499.0,0.1183895]
[1742487235334,0.293,84500.0,84496.0,0.0591962]
[1742487235540,0.1183937,84496.0,84495.0,0.1184343]
[1742487235835,0.1183965,84494.0,84493.0,0.11857504]
[1742487236138,0.1183965,84494.0,84493.0,0.11857544]
[1742487236328,0.1429,84494.0,84493.0,0.11857544]
[1742487236527,0.2878,84494.0,84493.0,0.11857544]
[1742487237239,0.4061965,84494.0,84493.0,0.11857544]
[1742487238135,0.2878,84494.0,84493.0,0.11857544]
[1742487239539,0.2878,84494.0,84493.0,0.40507544]
[1742487240035,0.01131647,84505.0,84498.0,0.0591952]
[1742487240234,0.01131647,84505.0,84504.0,0.1183825]
[1742487240435,0.01131647,84505.0,84504.0,0.5218825]
[1742487240832,0.37211647,84505.0,84496.0,0.4199963]
[1742487241033,0.2680829,84504.0,84503.0,0.1183839]
[1742487241233,0.1183844,84503.0,84502.0,0.0591926]
[1742487241430,0.00017754,84510.0,84509.0,0.1183755]
[1742487242036,0.00017754,84510.0,84509.0,0.4223755]
[1742487242235,0.1497,84517.0,84516.0,0.1183657]
[1742487242434,0.1497,84517.0,84516.0,0.3583657]
[1742487242637,0.1497,84517.0,84516.0,0.6623657]
[1742487243326,0.1497,84517.0,84516.0,0.4223657]
[1742487244150,0.1512,84520.0,84519.0,0.1183615]
[1742487244345,0.107637,84524.0,84523.0,0.1183559]
[1742487244645,0.00017754,84525.0,84524.0,0.1183545]
[1742487244836,0.00017754,84525.0,84524.0,0.3883545]
[1742487245032,0.00017754,84525.0,84524.0,0.6897545]
[1742487245632,0.1775387,84523.0,84522.0,0.0591779]
[1742487245947,0.1775387,84523.0,84513.0,0.37241508]
[1742487245948,0.1775437,84519.0,84518.0,0.1183593]
[1742487246146,0.0591808,84519.0,84518.0,0.2367209]
[1742487246332,0.1183588,84521.0,84520.0,0.1183587]
[1742487246534,0.2656588,84521.0,84520.0,0.1183587]
[1742487247741,0.4193588,84521.0,84520.0,0.1183587]
[1742487248334,0.4193588,84521.0,84520.0,0.2651587]
[1742487248738,0.4193588,84521.0,84520.0,0.1183587]
[1742487248942,0.303,84521.0,84520.0,0.1183587]
[1742487249259,0.303,84521.0,84520.0,0.6872587]
[1742487249643,0.1493,84521.0,84520.0,0.6872587]
[1742487249845,0.001,84521.0,84520.0,1.0480587]
[1742487250040,0.001,84521.0,84520.0,1.1788187]
[1742487250642,0.1193587,84521.0,84520.0,1.1788187]
[1742487251146,0.4192587,84521.0,84520.0,1.0480587]
[1742487251336,0.4192587,84521.0,84520.0,1.1788187]
[1742487252045,0.4182587,84521.0,84520.0,1.1788187]
[1742487252245,0.4192587,84521.0,84520.0,1.1788187]
[1742487252447,0.4192587,84521.0,84520.0,0.8988187]
[1742487253051,0.4182587,84521.0,84520.0,0.8988187]
[1742487253252,0.4192587,84521.0,84520.0,1.0380587]
[1742487253549,0.4192587,84521.0,84520.0,1.1687787]
[1742487255544,0.4192587,84521.0,84520.0,0.5351587]
[1742487255744,0.4192587,84521.0,84511.0,0.00021754]
[1742487255745,0.1183713,84512.0,84511.0,0.00017754]
[1742487256055,0.49060693,84512.0,84511.0,0.00017754]
[1742487256851,0.77300693,84512.0,84511.0,0.00017754]
[1742487257047,0.77300693,84512.0,84511.0,0.00217754]
[1742487257259,0.77300693,84512.0,84511.0,0.12055024]
[1742487257554,0.77300693,84512.0,84511.0,0.00217754]
[1742487258239,0.77300693,84512.0,84511.0,0.00317754]
[1742487258845,0.77300693,84512.0,84511.0,0.12155024]
[1742487259042,0.7615713,84512.0,84511.0,0.12155024]
[1742487259249,0.7615713,84512.0,84511.0,0.41205024]
[1742487259449,0.7635713,84512.0,84511.0,0.00017754]
[1742487260249,0.9143913,84512.0,84511.0,0.00017754]
[1742487260654,0.1184189,84478.0,84477.0,0.21207118]
[1742487261047,0.1184232,84475.0,84474.0,4e-05]
[1742487261444,0.1184246,84474.0,84467.0,0.35304808]
[1742487261651,0.1184246,84474.0,84433.0,0.63397253]
[1742487261652,0.0592188,84465.0,84461.0,0.53953537]
[1742487261853,0.1124414,84462.0,84461.0,0.53953537]
[1742487262053,0.1124414,84462.0,84461.0,0.42109657]
[1742487262454,0.1064414,84462.0,84461.0,0.42109657]
[1742487263155,0.3944414,84462.0,84461.0,0.42109657]
[1742487263557,0.3994414,84462.0,84461.0,0.42109657]
[1742487264363,0.4044414,84462.0,84461.0,0.42109657]
[1742487265264,0.4044414,84462.0,84457.0,4e-05]
[1742487265265,0.118447,84458.0,84457.0,4e-05]
[1742487265860,0.1586,84462.0,84461.0,0.1184428]
[1742487266053,0.01,84462.0,84461.0,0.3884428]
[1742487266262,0.4648421,84473.0,84472.0,0.1184274]
[1742487267757,0.13072,84478.0,84473.0,0.118426]
[1742487267758,0.0592096,84478.0,84473.0,0.118426]
[1742487268063,0.00017754,84479.0,84478.0,0.1184189]
[1742487268269,0.1025657,84492.0,84481.0,0.059207]
[1742487268572,0.2801695,84492.0,84491.0,0.1184007]
[1742487268759,0.1025657,84492.0,84491.0,0.1184007]
[1742487268960,0.1025657,84492.0,84491.0,0.3684007]
[1742487269271,0.13727407,84496.0,84495.0,0.1183951]
[1742487269474,0.13727407,84496.0,84495.0,0.3983951]
[1742487269767,0.13727407,84496.0,84495.0,0.28]
[1742487269768,0.25566777,84496.0,84495.0,0.28]
[1742487269968,0.49717157,84496.0,84491.0,0.01136862]
[1742487270160,0.1183993,84492.0,84491.0,0.001]
[1742487270762,0.4190993,84492.0,84491.0,0.001]
[1742487271659,0.1775959,84494.0,84493.0,0.1775934]
[1742487271871,0.002,84496.0,84495.0,0.1183951]
[1742487272174,0.1203937,84496.0,84495.0,0.3883951]
[1742487272575,0.1183937,84496.0,84495.0,0.3883951]
[1742487273171,0.1183937,84496.0,84495.0,0.27]
[1742487273374,0.1203937,84496.0,84495.0,0.27]
[1742487273570,0.1203937,84496.0,84487.0,0.07091703]
[1742487273571,0.1184105,84484.0,84480.0,4e-05]
[1742487273775,0.5792105,84484.0,84467.0,0.85988]
[1742487273985,0.4993105,84484.0,84477.0,0.11842]
[1742487274169,0.1184105,84484.0,84483.0,0.11858944]
[1742487274373,0.2054022,84489.0,84488.0,0.1184049]
[1742487274875,0.2054022,84489.0,84488.0,0.2638049]
[1742487275880,0.2064022,84489.0,84488.0,0.2638049]
[1742487276090,0.002,84496.0,84495.0,0.1183951]
[1742487276271,0.002,84496.0,84495.0,0.3883951]
[1742487276581,0.002,84496.0,84495.0,0.8798751]
[1742487276786,0.00017754,84500.0,84499.0,0.1183895]
[1742487276976,0.00017754,84500.0,84499.0,0.3683895]
[1742487277175,0.11856564,84500.0,84499.0,0.3683895]
[1742487277984,0.11856564,84500.0,84499.0,0.1183895]
[1742487278185,0.11856564,84500.0,84499.0,0.2591895]
[1742487278386,0.26296564,84500.0,84499.0,0.2591895]
[1742487278687,0.11856564,84500.0,84499.0,0.2591895]
[1742487278880,0.11856564,84500.0,84499.0,0.4991895]
[1742487280187,0.11956564,84500.0,84499.0,0.4991895]
[1742487280486,0.11956564,84500.0,84499.0,0.1408]
[1742487280685,0.1183993,84492.0,84491.0,1.097272]
[1742487280989,0.1183993,84492.0,84491.0,1.096592]
[1742487281184,0.1183993,84492.0,84491.0,1.10837049]
[1742487281390,0.0591989,84494.0,84493.0,0.1183979]
[1742487281588,0.0591989,84494.0,84493.0,0.4791979]
[1742487281791,0.0591989,84494.0,84493.0,0.2677979]
[1742487282089,0.0591989,84494.0,84493.0,0.6285979]
[1742487282285,0.0591989,84494.0,84493.0,0.2677979]
[1742487282680,0.0591989,84494.0,84493.0,0.2687979]
[1742487283483,0.3697989,84494.0,84493.0,0.001]
[1742487283681,0.3496989,84494.0,84493.0,0.001]
[1742487284989,0.3496989,84494.0,84493.0,0.002]
[1742487285393,0.3697989,84494.0,84493.0,0.002]
[1742487285793,0.3496989,84494.0,84493.0,0.002]
[1742487285986,0.4496989,84494.0,84493.0,0.002]
[1742487286183,0.4496989,84494.0,84474.0,4e-05]
[1742487286184,0.0592017,84490.0,84474.0,4e-05]
[1742487286383,0.8400105,84484.0,84483.0,4e-08]
[1742487286586,1.0706105,84484.0,84483.0,4e-08]
[1742487286889,1.4924105,84484.0,84483.0,4e-08]
[1742487287092,0.1184316,84469.0,84468.0,4e-05]
[1742487287400,0.4792316,84469.0,84468.0,4e-05]
[1742487287585,0.7665316,84469.0,84468.0,4e-05]
[1742487287788,0.7665316,84469.0,84463.0,0.2626399]
[1742487287789,0.1184386,84464.0,84463.0,0.2626399]
[1742487288187,0.1184386,84464.0,84463.0,0.27424535]
[1742487288386,0.1184386,84464.0,84463.0,0.1442]
[1742487288791,0.1184386,84464.0,84463.0,0.26264]
[1742487289293,0.00017754,84472.0,84471.0,0.1184288]
[1742487289498,0.11760494,84472.0,84471.0,0.3584288]
[1742487289793,0.1184175,84482.0,84479.0,0.0592084]
[1742487289997,0.28954603,84488.0,84487.0,0.1184063]
[1742487290193,0.28954603,84488.0,84487.0,0.3684063]
[1742487290797,0.28954603,84488.0,84487.0,0.6536063]
[1742487292000,0.1194049,84488.0,84487.0,0.6536063]
[1742487293102,0.13733158,84496.0,84495.0,0.1183951]
[1742487293301,0.13733158,84496.0,84495.0,0.3983951]
[1742487293597,0.25572528,84496.0,84495.0,0.3983951]
[1742487293996,0.25572528,84496.0,84495.0,0.6874951]
[1742487294200,0.25972528,84496.0,84495.0,0.6874951]
[1742487294594,0.54242528,84496.0,84495.0,0.6874951]
[1742487295195,0.54242528,84496.0,84495.0,0.28]
[1742487295399,0.1184119,84483.0,84482.0,0.00068]
[1742487295593,0.1776235,84482.0,84481.0,0.1184138]
[1742487295799,0.1453,84484.0,84483.0,0.1184119]
[1742487296102,0.1184082,84486.0,84483.0,0.1184119]
[1742487296103,0.2558077,84486.0,84485.0,0.1184091]
[1742487296305,0.2558077,84486.0,84485.0,0.3984091]
[1742487296497,0.2558077,84486.0,84485.0,0.6875091]
[1742487296692,0.3956077,84486.0,84485.0,0.6875091]
[1742487297299,0.00217754,84496.0,84494.0,0.0591982]
[1742487297504,0.00217754,84496.0,84495.0,0.4035951]
[1742487297701,0.00217754,84496.0,84495.0,0.6535951]
[1742487298014,0.11857124,84496.0,84495.0,0.6535951]
[1742487298590,0.12157124,84496.0,84495.0,0.6535951]
[1742487298796,0.40837124,84496.0,84495.0,0.6535951]
[1742487299198,0.40537124,84496.0,84495.0,0.6535951]
[1742487299400,0.40737124,84496.0,84495.0,0.6535951]
[1742487299703,0.28897754,84496.0,84495.0,0.6535951]
[1742487300098,0.29197754,84496.0,84495.0,0.1183951]
[1742487300303,0.29197754,84496.0,84490.0,0.1184012]
[1742487300503,0.1184021,84490.0,84489.0,0.1184025]
[1742487300700,0.1776088,84488.0,84487.0,0.1184062]
[1742487301099,0.1184133,84482.0,84480.0,0.4106]
[1742487301296,0.1184133,84482.0,84481.0,0.4792147]
[1742487301502,0.4022133,84482.0,84481.0,0.3608]
[1742487301907,0.3608,84489.0,84481.0,0.3608]
[1742487301908,0.0591997,84492.0,84491.0,0.0591996]
[1742487302206,0.177599,84492.0,84491.0,0.1775975]
[1742487303204,0.326499,84492.0,84491.0,0.1775975]
[1742487303405,0.0592018,84489.0,84482.0,0.059206]
[1742487303605,0.1184133,84482.0,84481.0,0.4792138]
[1742487304002,0.4112133,84482.0,84481.0,0.3608]
[1742487304198,0.1184161,84480.0,84479.0,0.00017754]
[1742487304604,0.4112161,84480.0,84479.0,0.00017754]
[1742487304804,0.5112161,84480.0,84479.0,0.00017754]
[1742487305095,0.177653,84467.0,84466.0,0.1184355]
[1742487305494,0.1184442,84460.0,84459.0,0.5384668]
[1742487305697,0.1174442,84460.0,84459.0,0.5384668]
[1742487305894,0.2617442,84460.0,84459.0,0.5384668]
[1742487306109,0.2617442,84460.0,84459.0,0.1776668]
[1742487306309,0.2577442,84460.0,84459.0,0.1776668]
[1742487306709,0.2577442,84460.0,84459.0,0.005]
[1742487306710,0.3892642,84460.0,84459.0,0.005]
[1742487307101,0.3892642,84460.0,84459.0,0.1234456]
[1742487307312,0.3882642,84460.0,84459.0,0.1184456]
[1742487307504,0.3892642,84460.0,84459.0,0.1184456]
[1742487307705,0.059227,84454.0,84451.0,0.00017754]
[1742487308014,0.2637554,84453.0,84452.0,0.1184481]
[1742487308201,0.3998554,84453.0,84452.0,0.1184481]
[1742487308507,0.1184554,84452.0,84451.0,0.00017754]
[1742487308809,0.1767139,84439.0,84438.0,0.2369386]
[1742487309003,0.1767139,84439.0,84438.0,0.24593751]
[1742487309401,0.1747139,84439.0,84438.0,0.12747101]
[1742487309800,0.11864234,84447.0,84446.0,0.1184624]
[1742487310009,0.11863994,84447.0,84446.0,0.3784624]
[1742487310212,0.11863994,84447.0,84446.0,0.1184624]
[1742487310412,0.059218,84466.0,84446.0,0.76009061]
[1742487310606,0.1776755,84456.0,84455.0,0.1184498]
[1742487310804,0.1776755,84456.0,84446.0,0.76009061]
[1742487310805,0.1184624,84447.0,84446.0,0.00064]
[1742487311012,0.0592361,84441.0,84440.0,0.1777011]
[1742487311213,0.1428,84446.0,84444.0,0.1184652]
[1742487311399,0.2694652,84445.0,84444.0,0.1184652]
[1742487312705,0.2714652,84445.0,84444.0,0.1184652]
[1742487313313,0.1184666,84444.0,84443.0,4e-05]
[1742487313500,0.118475,84438.0,84437.0,0.11865394]
[1742487314417,0.418175,84438.0,84437.0,0.11865394]
[1742487314902,0.001,84444.0,84443.0,0.118468]
[1742487315223,0.001,84444.0,84443.0,0.739268]
[1742487316013,0.137,84446.0,84445.0,0.1184652]
[1742487316317,0.137,84446.0,84445.0,0.3684652]
[1742487316318,0.2786,84446.0,84445.0,0.3684652]
[1742487316910,0.3970638,84446.0,84445.0,0.1184652]
[1742487317907,0.0592357,84441.0,84437.0,0.05941434]
[1742487318106,0.36276001,84446.0,84445.0,0.1184652]
[1742487318303,0.001,84446.0,84445.0,0.3984652]
[1742487318513,0.003,84446.0,84445.0,0.3984652]
[1742487318911,0.003,84446.0,84445.0,0.5424652]
[1742487319511,0.118463,84447.0,84446.0,0.1184638]
[1742487320711,0.059228,84452.0,84451.0,0.1184554]
[1742487321305,0.059228,84452.0,84451.0,0.2636554]
[1742487322420,0.062228,84452.0,84451.0,0.2636554]
[1742487323010,0.062228,84452.0,84451.0,0.1184554]
[1742487324826,0.064228,84452.0,84451.0,0.1184554]
[1742487326325,0.1184582,84450.0,84449.0,0.0592291]
[1742487326722,0.118461,84448.0,84447.0,0.2636619]
[1742487327317,0.005,84452.0,84448.0,0.177688]
[1742487327519,0.25570149,84466.0,84465.0,0.1184372]
[1742487327819,0.1184358,84466.0,84465.0,0.36999829]
[1742487328033,0.1184358,84466.0,84465.0,0.4935372]
[1742487328220,0.1184358,84466.0,84465.0,0.1351]
[1742487328524,0.1184358,84466.0,84465.0,0.2535372]
[1742487329118,0.1234358,84466.0,84465.0,0.2535372]
[1742487329423,0.01,84466.0,84465.0,0.4845372]
[1742487330928,0.01,84466.0,84465.0,0.6222372]
[1742487331223,0.00017765,84474.0,84468.0,0.0592164]
[1742487331525,0.35638773,84489.0,84488.0,0.1184049]
[1742487331717,0.12984692,84489.0,84488.0,0.1184049]
[1742487331918,0.1183985,84493.0,84488.0,0.0592018]
[1742487332118,0.1183985,84493.0,84492.0,0.1183979]
[1742487332315,0.12988925,84493.0,84492.0,0.1183979]
[1742487332517,0.12988925,84493.0,84492.0,0.2520979]
[1742487332922,0.3608,84494.0,84493.0,0.1183979]
[1742487333111,0.27171299,84502.0,84496.0,0.1183937]
[1742487333314,0.27075298,84502.0,84496.0,0.3883937]
[1742487333722,0.27075298,84502.0,84500.0,0.1183881]
[1742487333926,0.27075298,84502.0,84500.0,0.7491881]
[1742487334323,0.1574709,84502.0,84501.0,0.1183867]
[1742487334632,0.1574709,84502.0,84501.0,0.4083867]